fUSD/lending_fUSD_20260221
["ID","MTS","AMOUNT","RATE_DAILY","PERIOD"]
[406296104,1771699838005,-500.0,0.00013497,2]
[406296106,1771699838014,-500.0,0.00013497,2]
[406296108,1771699838023,-500.0,0.00013497,2]
[406296110,1771699838032,-500.0,0.00013497,2]
[406296112,1771699838041,-500.0,0.00013497,2]
[406296115,1771699838050,-500.0,0.00013497,2]
[406296118,1771699838060,-500.0,0.00013497,2]
[406296121,1771699838070,-500.0,0.00013497,2]
[406296124,1771699838079,-500.0,0.00013497,2]
[406296127,1771699838089,-500.0,0.00013497,2]
[406296130,1771699838099,-500.0,0.00013497,2]
[406296133,1771699838107,-500.0,0.00013497,2]
[406296136,1771699838117,-500.0,0.00013497,2]
[406296139,1771699838126,-500.0,0.00013497,2]
[406296142,1771699838136,-500.0,0.00013497,2]
[406296145,1771699838146,-500.0,0.00013497,2]
[406296148,1771699838155,-500.0,0.00013497,2]
[406296150,1771699838164,-500.0,0.00013497,2]
[406296152,1771699838174,-500.0,0.00013497,2]
[406296154,1771699838183,-500.0,0.00013497,2]
[406296156,1771699838192,-500.0,0.00013497,2]
[406296158,1771699838202,-500.0,0.00013497,2]
[406296160,1771699838211,-500.0,0.00013497,2]
[406296162,1771699838220,-500.0,0.00013497,2]
[406296164,1771699838230,-500.0,0.00013497,2]
[406296166,1771699838239,-500.0,0.00013497,2]
[406296168,1771699838249,-500.0,0.00013497,2]
[406296170,1771699838258,-500.0,0.00013497,2]
[406296172,1771699838269,-341.4257722,0.00013497,2]
[406296174,1771699838280,-500.0,0.00013497,2]
[406296176,1771699838289,-500.0,0.00013497,2]
[406296178,1771699838298,-500.0,0.00013497,2]
[406296180,1771699838307,-500.0,0.00013497,2]
[406296182,1771699838317,-500.0,0.00013497,2]
[406296184,1771699838326,-500.0,0.00013497,2]
[406296185,1771699838336,-150.0,0.00013497,2]
[406296188,1771699838345,-500.0,0.00013497,2]
[406296189,1771699838354,-500.0,0.00013497,2]
[406296192,1771699838364,-500.0,0.00013497,2]
[406296193,1771699838375,-500.0,0.00013497,2]
[406296195,1771699838384,-500.0,0.00013497,2]
[406296197,1771699838393,-500.0,0.00013497,2]
[406296200,1771699838403,-500.0,0.00013497,2]
[406296202,1771699838412,-500.0,0.00013497,2]
[406296204,1771699838422,-500.0,0.00013497,2]
[406296206,1771699838431,-500.0,0.00013497,2]
[406296208,1771699838440,-500.0,0.00013497,2]
[406296210,1771699838449,-500.0,0.00013497,2]
[406296212,1771699838460,-500.0,0.00013497,2]
[406296214,1771699838469,-500.0,0.00013497,2]
[406296216,1771699838479,-488.59448008,0.00013497,2]
[406296218,1771699838487,-500.0,0.00013497,2]
[406296220,1771699838497,-500.0,0.00013497,2]
[406296222,1771699838506,-500.0,0.00013497,2]
[406296224,1771699838516,-500.0,0.00013497,2]
[406296226,1771699838526,-500.0,0.00013497,2]
[406296228,1771699838535,-1093.84297252,0.00013597,3]
[406296230,1771699838544,-1093.84297252,0.00013597,3]
[406296232,1771699838553,-1093.84297252,0.00013597,3]
[406296234,1771699838563,-1093.84297252,0.00013597,3]
[406296236,1771699838572,-1093.84297252,0.00013597,3]
[406296238,1771699838581,-1093.84297252,0.00013597,3]
[406296240,1771699838590,-1093.8429725,0.00013597,3]
[406296242,1771699838599,-10000.0,0.00013598,2]
[406296244,1771699838608,-32860.742,0.00013598,2]
[406296246,1771699838618,-1000.0,0.00013598,2]
[406296248,1771699838627,-500.0,0.00013698,2]
[406296250,1771699838637,-500.0,0.00013698,2]
[406296252,1771699838646,-500.0,0.00013698,2]
[406296254,1771699838655,-500.0,0.00013698,2]
[406296256,1771699838664,-500.0,0.00013698,2]
[406296258,1771699838674,-500.0,0.00013698,2]
[406296260,1771699838683,-500.0,0.00013698,2]
[406296262,1771699838693,-500.0,0.00013698,2]
[406296264,1771699838702,-500.0,0.00013698,2]
[406296266,1771699838711,-500.0,0.00013698,2]
[406296268,1771699838721,-500.0,0.00013698,2]
[406296270,1771699838730,-507.84698515,0.00013698,2]
[406296272,1771699838739,-500.0,0.00013698,2]
[406296274,1771699838749,-500.0,0.00013698,2]
[406296275,1771699838758,-500.0,0.00013698,2]
[406296277,1771699838767,-500.0,0.00013698,2]
[406296280,1771699838777,-500.0,0.00013698,2]
[406296281,1771699838786,-500.0,0.00013698,2]
[406296283,1771699838795,-500.0,0.00013698,2]
[406296285,1771699838804,-500.0,0.00013698,2]
[406296287,1771699838814,-500.0,0.00013698,2]
[406296289,1771699838823,-500.0,0.00013698,2]
[406296291,1771699838833,-500.0,0.00013698,2]
[406296293,1771699838842,-500.0,0.00013698,2]
[406296295,1771699838851,-500.0,0.00013698,2]
[406296297,1771699838861,-500.0,0.00013698,2]
[406296299,1771699838870,-500.0,0.00013698,2]
[406296301,1771699838879,-529.62531176,0.00013698,2]
[406296303,1771699838888,-150.99,0.00013699,2]
[406296304,1771699838897,-3626.51,0.000137,2]
[406296305,1771699838906,-3626.51,0.000137,2]
[406296306,1771699838915,-3626.51,0.000137,2]
[406296307,1771699838924,-3626.51,0.000137,2]
[406296308,1771699838933,-3626.51,0.000137,2]
[406296309,1771699838942,-212.71,0.00013771,2]
[406296310,1771699838950,-3681.07340697,0.00013809,2]
[406296311,1771699838959,-3240.0,0.00013956,2]
[406296312,1771699838968,-500.0,0.00014,2]
[406296314,1771699838978,-800.0,0.00014,2]
[406296316,1771699838988,-500.0,0.00014,2]
[406296318,1771699838997,-500.0,0.00014,2]
[406296320,1771699839009,-212.71,0.00014045,2]
[406296322,1771699839019,-212.71,0.00014319,2]
[406296324,1771699839029,-3681.07340697,0.00014321,2]
[406296326,1771699839038,-255.0,0.00014508,2]
[406296328,1771699839047,-2500.0,0.00014524,2]
[406296330,1771699839057,-2500.0,0.00014524,2]
[406296332,1771699839066,-2500.0,0.00014524,2]
[406296334,1771699839075,-420.0,0.00014578,2]
[406296336,1771699839086,-212.76,0.00014593,2]
[406296338,1771699839095,-195.0,0.00014627,2]
[406296340,1771699839105,-195.0,0.00014627,2]
[406296343,1771699839114,-195.0,0.00014627,2]
[406296345,1771699839124,-195.0,0.00014627,2]
[406296347,1771699839133,-304.12596972,0.00014627,2]
[406296348,1771699839143,-1680.0,0.00014627,2]
[406296350,1771699839152,-300.0,0.00014628,2]
[406296352,1771699839161,-195.0,0.00014628,2]
[406296354,1771699839170,-2500.0,0.00014628,2]
[406296357,1771699839181,-2500.0,0.00014628,2]
[406296359,1771699839191,-600.0,0.00014628,2]
[406296361,1771699839200,-3681.07340697,0.00014832,2]
[406296362,1771699839209,-250.0,0.00015,2]
[406296364,1771699839219,-150.0,0.00015239,2]
[406296366,1771699839228,-3681.07340697,0.00015343,2]
[406296368,1771699839237,-486.92384,0.00015387,7]
[406296370,1771699839246,-173.74378417,0.00015565,2]
[406296372,1771699839256,-160.0,0.00015565,2]
[406296374,1771699839266,-298.31,0.00015606,2]
[406296376,1771699839279,-409.0,0.00015714,2]
[406296378,1771699839289,-3681.07340697,0.00015855,2]
[406296380,1771699839298,-587.0,0.00015982,2]
[406296382,1771699839308,-721.12765535,0.00015995,2]
[406296384,1771699839318,-500.0,0.00015995,2]
[406296387,1771699839327,-500.0,0.00015995,2]
[406296389,1771699839336,-500.0,0.00015995,2]
[406296391,1771699839350,-500.0,0.00015995,2]
[406296393,1771699839359,-500.0,0.00015995,2]
[406296394,1771699839368,-500.0,0.00015995,2]
[406296396,1771699839377,-500.0,0.00015995,2]
[406296398,1771699839386,-500.0,0.00015995,2]
[406296400,1771699839396,-500.0,0.00015995,2]
[406296402,1771699839405,-500.0,0.00015995,2]
[406296404,1771699839415,-500.0,0.00015995,2]
[406296406,1771699839424,-693.3919763,0.00015995,2]
[406296408,1771699839434,-510.0,0.00016,2]
[406296410,1771699839443,-719.04747942,0.0001605,2]
[406296413,1771699839453,-2351.0,0.00016089,2]
[406296416,1771699839461,-745.65223616,0.00016105,2]
[406296419,1771699839470,-773.2413689,0.0001616,2]
[406296422,1771699839480,-801.85129955,0.00016215,2]
[406296424,1771699839490,-200.0,0.00016258,2]
[406296426,1771699839499,-831.51979763,0.0001627,2]
[406296428,1771699839509,-500.0,0.00016271,2]
[406296430,1771699839518,-862.28603014,0.00016325,2]
[406296432,1771699839527,-166.66,0.00016356,2]
[406296434,1771699839536,-3681.07340697,0.00016366,2]
[406296436,1771699839545,-894.19061326,0.0001638,2]
[406296438,1771699839554,-927.27566595,0.00016435,2]
[406296440,1771699839563,-222.15,0.00016438,30]
[406296442,1771699839572,-961.58486559,0.0001649,2]
[406296443,1771699839581,-500.0,0.00016538,2]
[406296445,1771699839590,-997.16350561,0.00016545,2]
[406296447,1771699839599,-166.66,0.00016701,2]
[406296449,1771699839608,-167.28,0.00016712,2]
[406296451,1771699839617,-3681.07340697,0.00016877,2]
[406296453,1771699839627,-200.0,0.00016983,2]
[406296455,1771699839636,-300.0,0.00017,2]
[406296457,1771699839645,-166.66,0.00017045,2]
[406296459,1771699839654,-250.0,0.00017168,2]
[406296461,1771699839663,-350.0,0.00017251,2]
[406296463,1771699839672,-350.0,0.00017309,2]
[406296465,1771699839682,-3681.07340697,0.00017389,2]
[406296467,1771699839691,-166.66,0.00017389,2]
[406296469,1771699839701,-500.0,0.00017422,2]
[406296471,1771699839711,-500.0,0.00017422,2]
[406296474,1771699839720,-350.0,0.00017493,2]
[406296475,1771699839731,-823.0,0.00017522,2]
[406296478,1771699839741,-613.72084174,0.00017686,2]
[406296480,1771699839751,-5888.0,0.00017693,2]
[406296482,1771699839761,-150.0,0.00017698,2]
[406296484,1771699839770,-3292.0,0.00017698,2]
[406296486,1771699839780,-250.0,0.00017698,2]
[406296488,1771699839791,-150.0,0.00017698,2]
[406296490,1771699839801,-150.0,0.00017698,2]
[406296492,1771699839810,-150.0,0.00017698,2]
[406296494,1771699839819,-150.0,0.00017698,2]
[406296496,1771699839828,-150.0,0.00017698,2]
[406296498,1771699839837,-150.0,0.00017698,2]
[406296499,1771699839847,-166.66,0.00017734,2]
[406296500,1771699839856,-150.0,0.00017753,2]
[406296501,1771699839865,-150.0,0.00017753,2]
[406296502,1771699839875,-200.0,0.00017753,2]
[406296503,1771699839885,-150.0,0.00017753,2]
[406296504,1771699839895,-150.0,0.00017753,2]
[406296505,1771699839904,-150.0,0.00017808,2]
[406296506,1771699839913,-200.0,0.00017808,2]
[406296507,1771699839923,-200.0,0.00017808,2]
[406296508,1771699839933,-200.0,0.00017808,2]
[406296509,1771699839944,-760.13199823,0.00017808,2]
[406296510,1771699839955,-760.13199823,0.00017808,2]
[406296511,1771699839964,-760.13199823,0.00017808,2]
[406296512,1771699839973,-760.13199823,0.00017808,2]
[406296513,1771699839983,-760.13199823,0.00017808,2]
[406296514,1771699839992,-760.13199823,0.00017808,2]
[406296515,1771699840000,-760.13199823,0.00017808,2]
[406296516,1771699840009,-760.13199823,0.00017808,2]
[406296517,1771699840018,-760.13199823,0.00017808,2]
[406296518,1771699840027,-760.13199823,0.00017808,2]
[406296519,1771699840037,-760.13199823,0.00017808,2]
[406296520,1771699840046,-760.13199823,0.00017808,2]
[406296521,1771699840055,-760.13199823,0.00017808,2]
[406296522,1771699840065,-760.13199823,0.00017808,2]
[406296523,1771699840074,-760.13199823,0.00017808,2]
[406296524,1771699840086,-760.13199823,0.00017808,2]
[406296525,1771699840095,-760.13199823,0.00017808,2]
[406296526,1771699840104,-760.13199823,0.00017808,2]
[406296527,1771699840113,-760.13199823,0.00017808,2]
[406296528,1771699840123,-760.13199823,0.00017808,2]
[406296529,1771699840134,-760.13199823,0.00017808,2]
[406296530,1771699840143,-760.13199823,0.00017808,2]
[406296531,1771699840152,-760.13199823,0.00017808,2]
[406296532,1771699840162,-760.13199823,0.00017808,2]
[406296533,1771699840172,-760.13199823,0.00017808,2]
[406296534,1771699840181,-760.13199823,0.00017808,2]
[406296535,1771699840190,-760.13199823,0.00017808,2]
[406296536,1771699840199,-179.0,0.00017862,2]
[406296537,1771699840208,-1819.0,0.000179,2]
[406296538,1771699840218,-3681.07340697,0.000179,2]
[406296539,1771699840227,-5888.0,0.00017916,2]
[406296540,1771699840236,-213.13338859,0.0001799,2]
[406296541,1771699840246,-151.0,0.00017997,2]
[406296542,1771699840255,-500.0,0.00017999,2]
[406296543,1771699840264,-500.0,0.00017999,2]
[406296544,1771699840277,-500.0,0.00017999,2]
[406296545,1771699840286,-500.0,0.00017999,2]
[406296546,1771699840296,-500.0,0.00017999,2]
[406296547,1771699840305,-256.86452513,0.00017999,2]
[406296548,1771699840315,-300.0,0.00017999,2]
[406296549,1771699840324,-300.0,0.00017999,2]
[406296550,1771699840333,-666.0,0.00017999,2]
[406296551,1771699840342,-150.0,0.00017999,2]
[406296552,1771699840351,-150.0,0.00017999,2]
[406296553,1771699840360,-256.38574544,0.00017999,2]
[406296554,1771699840370,-687328.87402422,0.00018,2]
[406296555,1771699840379,-338236.87946214,0.00018,2]
[406296556,1771699840692,-1438.2595858,0.00018,2]
[406296557,1771699840703,-317.76,0.00018,2]
[406296558,1771699840715,-4241.59355284,0.00018,2]
[406296559,1771699840726,-2603.83148825,0.00018,2]
[406296560,1771699840745,-3429.05,0.00018,2]
[406296561,1771699840873,-307.78780288,0.00018,2]
[406296562,1771699840884,-573.77352924,0.00018,2]
[406296563,1771699840895,-554.05766145,0.00018,2]
[406296564,1771699840911,-51680.92484403,0.00018,2]
[406296565,1771699840922,-519.56113632,0.00018,2]
[406296566,1771699840935,-1613.38149951,0.00018,2]
[406296567,1771699840946,-1288.63248971,0.00018,2]
[406296568,1771699840957,-420.81679979,0.00018,2]
[406296569,1771699840968,-629.85331242,0.00018,2]
[406296570,1771699840987,-4580.05,0.00018,2]
[406296571,1771699840998,-2103547.56566198,0.00018,2]
[406296572,1771699841008,-173.53675431,0.00018,2]
[406296573,1771699841017,-4026.1310372,0.00018,2]
[406296574,1771699841027,-151.0,0.00018,2]
[406296575,1771699841036,-151.0,0.00018,2]
[406296576,1771699841045,-259.859656,0.00018,2]
[406296577,1771699841054,-151.0,0.00018,2]
[406296578,1771699841064,-151.0,0.00018,2]
[406296579,1771699841073,-151.0,0.00018,2]
[406296580,1771699841084,-151.0,0.00018,2]
[406296581,1771699841094,-151.0,0.00018,2]
[406296582,1771699841103,-151.0,0.00018,2]
[406296583,1771699841113,-151.0,0.00018,2]
[406296584,1771699841122,-151.0,0.00018,2]
[406296585,1771699841131,-151.0,0.00018,2]
[406296586,1771699841140,-151.0,0.00018,2]
[406296587,1771699841150,-174.044366,0.00018,2]
[406296588,1771699841159,-151.0,0.00018,2]
[406296589,1771699841169,-151.0,0.00018,2]
[406296590,1771699841178,-151.0,0.00018,2]
[406296591,1771699841187,-370.744883,0.00018,2]
[406296592,1771699841196,-370.744883,0.00018,2]
[406296593,1771699841206,-370.744883,0.00018,2]
[406296594,1771699841215,-151.0,0.00018,2]
[406296595,1771699841224,-370.744883,0.00018,2]
[406296596,1771699841233,-151.0,0.00018,2]
[406296597,1771699841242,-151.0,0.00018,2]
[406296598,1771699841252,-1879.32087,0.00018,2]
[406296599,1771699841262,-1879.32087,0.00018,2]
[406296600,1771699841273,-1879.32087,0.00018,2]
[406296601,1771699841283,-1879.32087,0.00018,2]
[406296602,1771699841292,-1879.32087,0.00018,2]
[406296603,1771699841301,-1879.32087,0.00018,2]
[406296604,1771699841311,-155.9611,0.00018,2]
[406296605,1771699841320,-426.745295,0.00018,2]
[406296606,1771699841330,-426.745295,0.00018,2]
[406296607,1771699841339,-426.745295,0.00018,2]
[406296608,1771699841349,-426.745295,0.00018,2]
[406296609,1771699841359,-680.208125,0.00018,2]
[406296610,1771699841368,-680.208125,0.00018,2]
[406296611,1771699841377,-325.537551,0.00018,2]
[406296612,1771699841387,-680.208125,0.00018,2]
[406296613,1771699841397,-325.537551,0.00018,2]
[406296614,1771699841406,-680.208125,0.00018,2]
[406296615,1771699841415,-325.537551,0.00018,2]
[406296616,1771699841424,-325.537551,0.00018,2]
[406296617,1771699841434,-151.0,0.00018,2]
[406296618,1771699841443,-151.0,0.00018,2]
[406296619,1771699841454,-166.66,0.00018056,2]
[406296620,1771699841464,-166.66,0.00018078,2]
[406296621,1771699841473,-168.0,0.00018104,2]
[406296622,1771699841482,-168.0,0.00018147,2]
[406296623,1771699841491,-168.0,0.00018153,2]
[406296624,1771699841501,-168.0,0.00018158,2]
[406296625,1771699841511,-350.0,0.00018181,2]
[406296626,1771699841520,-595.87,0.00018247,2]
[406296627,1771699841530,-168.0,0.00018257,2]
[406296628,1771699841539,-168.0,0.00018259,2]
[406296629,1771699841549,-350.0,0.000183,2]
[406296630,1771699841558,-150.0,0.000183,7]
[406296631,1771699841567,-168.0,0.00018317,2]
[406296632,1771699841576,-168.0,0.00018345,2]
[406296633,1771699841586,-155.0,0.00018449,2]
[406296634,1771699841595,-350.0,0.0001845,2]
[406296635,1771699841605,-5180.0,0.00018508,2]
[406296636,1771699841614,-164.16786887,0.0001854,2]
[406296637,1771699841623,-297.46778061,0.0001854,2]
[406296638,1771699841633,-500.0,0.0001854,2]
[406296639,1771699841643,-500.0,0.0001854,2]
[406296640,1771699841661,-500.0,0.0001854,2]
[406296641,1771699841672,-162.05016959,0.0001854,2]
[406296642,1771699841682,-500.0,0.0001854,2]
[406296643,1771699841692,-500.0,0.0001854,2]
[406296644,1771699841702,-500.0,0.0001854,2]
[406296645,1771699841712,-500.0,0.0001854,2]
[406296646,1771699841722,-502.50033053,0.0001854,2]
[406296647,1771699841731,-241.21989957,0.0001854,2]
[406296648,1771699841740,-166.66,0.00018582,2]
[406296649,1771699841750,-232.71017713,0.00018723,2]
[406296650,1771699841759,-747.8093786,0.00018734,2]
[406296651,1771699841769,-155.0,0.00018899,2]
[406296652,1771699841779,-898.3512631,0.00018961,2]
[406296653,1771699841788,-1000.0,0.00019,2]
[406296654,1771699841798,-7600.4157776,0.00019,2]
[406296655,1771699841808,-500.0,0.00019,2]
[406296656,1771699841817,-279.01716973,0.00019,2]
[406296657,1771699841827,-350.0,0.00019,2]
[406296658,1771699841837,-173.62004723,0.00019,2]
[406296659,1771699841846,-1000.0,0.00019088,2]
[406296660,1771699841855,-1000.0,0.00019088,2]
[406296661,1771699841865,-1098.38505595,0.00019088,2]
[406296662,1771699841874,-1000.0,0.00019088,2]
[406296663,1771699841884,-1000.0,0.00019088,2]
[406296664,1771699841894,-1000.0,0.00019088,2]
[406296665,1771699841905,-1000.0,0.00019088,2]
[406296666,1771699841914,-5180.0,0.00019114,2]
[406296667,1771699841923,-200.4492612,0.00019176,2]
[406296668,1771699841933,-350.0,0.00019176,2]
[406296669,1771699841942,-370.64791783,0.00019178,2]
[406296670,1771699841952,-151.0,0.00019178,2]
[406296671,1771699841961,-151.000004,0.00019178,2]
[406296672,1771699841970,-151.0,0.00019178,2]
[406296673,1771699841979,-151.0,0.00019178,2]
[406296674,1771699841989,-151.0,0.00019178,2]
[406296675,1771699841999,-151.0,0.00019178,2]
[406296676,1771699842013,-151.0,0.00019178,2]
[406296677,1771699842023,-150.0,0.00019178,2]
[406296678,1771699842033,-350.0,0.00019188,2]
[406296679,1771699842043,-655.0,0.0001921,2]
[406296680,1771699842052,-584.308608,0.00019233,7]
[406296681,1771699842061,-69833.2786688,0.00019282,2]
[406296682,1771699842072,-350.0,0.00019325,2]
[406296683,1771699842082,-155.0,0.00019349,2]
[406296684,1771699842091,-155.81,0.00019379,2]
[406296685,1771699842101,-1000.0,0.00019408,2]
[406296686,1771699842110,-1600.0,0.00019434,2]
[406296687,1771699842120,-4113.0,0.00019468,2]
[406296688,1771699842129,-528.2508627,0.00019636,2]
[406296689,1771699842138,-887.35182664,0.00019636,2]
[406296690,1771699842147,-1500.0,0.00019636,2]
[406296691,1771699842157,-1500.0,0.00019636,2]
[406296692,1771699842166,-1500.0,0.00019636,2]
[406296693,1771699842175,-15581.910653,0.00019697,2]
[406296694,1771699842185,-250.0,0.00019726,2]
[406296695,1771699842194,-350.0,0.00019745,2]
[406296696,1771699842203,-350.0,0.0001977,2]
[406296697,1771699842217,-155.0,0.00019799,2]
[406296698,1771699842226,-886.3153012,0.0001995,15]
[406296699,1771699842235,-2805.23262734,0.0002,120]
[406296700,1771699842245,-1537.76157445,0.0002,2]
[406296701,1771699842254,-177.02212385,0.0002,2]
[406296702,1771699842264,-2464.68,0.0002,2]
[406296703,1771699842277,-1298.22971132,0.0002,2]
[406296704,1771699842287,-1048.00292818,0.0002,2]
[406296705,1771699842296,-2871.79567349,0.0002,2]
[406296706,1771699842306,-154.94875232,0.0002,2]
[406296707,1771699842317,-152.0,0.0002,2]
[406296708,1771699842326,-1014.03988287,0.00020184,2]
[406296709,1771699842336,-2000.0,0.00020184,2]
[406296710,1771699842346,-265.93928549,0.00020274,2]
[406296711,1771699842356,-222.15,0.00020467,30]
[406296712,1771699842368,-155.69,0.00020548,2]
[406296713,1771699842378,-793.67865987,0.00020732,2]
[406296714,1771699842388,-1197.42575804,0.00021,2]
[406296715,1771699842399,-197.64508144,0.00021,2]
[406296716,1771699842414,-110374.60423123,0.00021,2]
[406296717,1771699842423,-400.0,0.00021,2]
[406296718,1771699842433,-3791.065805,0.00021157,7]
[406296719,1771699842446,-510.0,0.00021333,6]
[406296720,1771699842457,-775.47832561,0.00021473,2]
[406296721,1771699842467,-222.97430806,0.000215,2]
[406296722,1771699842476,-155.0,0.00021599,2]
[406296723,1771699842486,-2000.0,0.00021917,2]
[406296724,1771699842496,-5000.0,0.00021918,2]
[406296725,1771699842506,-3045.01,0.00021918,2]
[406296726,1771699842515,-496.794936,0.00021918,2]
[406296727,1771699842524,-496.794936,0.00021918,2]
[406296728,1771699842535,-496.794936,0.00021918,2]
[406296730,1771699842545,-496.794936,0.00021918,2]
[406296732,1771699842555,-159.0,0.00021931,30]
[406296734,1771699842565,-132434.68950569,0.00022,2]
[406296735,1771699842574,-163.53,0.00022,2]
[406296736,1771699842583,-160.0,0.00022,2]
[406296737,1771699842593,-167.45,0.00022,2]
[406296739,1771699842606,-613.72084174,0.00022,2]
[406296740,1771699842615,-496.42397569,0.000221,2]
[406296741,1771699842625,-241.22058511,0.0002211,2]
[406296742,1771699842635,-525.36364149,0.0002271,2]
[406296743,1771699842644,-298.31,0.00022743,2]
[406296745,1771699842654,-155.90164677,0.00022828,2]
[406296746,1771699842663,-151.0,0.00022828,2]
[406296747,1771699842673,-151.0,0.00022828,2]
[406296748,1771699842683,-151.0,0.00022828,2]
[406296749,1771699842692,-151.0,0.00022828,2]
[406296750,1771699842704,-296.0,0.00022828,2]
[406296751,1771699842714,-151.0,0.00022997,7]
[406296752,1771699842724,-153.03,0.00023,7]
[406296753,1771699842734,-304887.24803165,0.00023,2]
[406296754,1771699842743,-450.0,0.00023,2]
[406296755,1771699842752,-160.0,0.00023,2]
[406296756,1771699842763,-667.88518278,0.000232,2]
[406296757,1771699842772,-155.81,0.00023255,2]
[406296758,1771699842781,-151.0,0.00023384,30]
[406296759,1771699842791,-200.0,0.000235,2]
[406296760,1771699842803,-306.70242982,0.00023816,2]
[406296761,1771699842814,-232.71017713,0.00023975,2]
[406296762,1771699842824,-1025.79563103,0.00024,2]
[406296763,1771699842833,-1240.39290392,0.00024,2]
[406296764,1771699842843,-423.76381575,0.0002421,2]
[406296765,1771699842852,-804.17102365,0.00024212,2]
[406296766,1771699842862,-252.7,0.00024476,2]
[406296767,1771699842871,-222.15,0.00024496,30]
[406296768,1771699842880,-4350.88,0.00024512,2]
[406296769,1771699842889,-293.32,0.00024548,2]
[406296770,1771699842899,-1229.63,0.00024658,2]
[406296771,1771699842909,-151.0,0.00024658,2]
[406296772,1771699842918,-151.0,0.00024658,2]
[406296773,1771699842928,-151.0,0.00024658,2]
[406296774,1771699842937,-1000.0,0.00024658,2]
[406296775,1771699842947,-1116.22294843,0.00025,2]
[406296776,1771699842956,-207.94066833,0.00025,2]
[406296777,1771699842965,-1788.55597662,0.00025,2]
[406296778,1771699842975,-540.0,0.00025,2]
[406296779,1771699842984,-612.16982898,0.00025,2]
[406296780,1771699842994,-3050.78782243,0.00025,2]
[406296781,1771699843006,-167.66928281,0.00025,2]
[406296782,1771699843017,-500.0,0.00025,2]
[406296783,1771699843027,-155.0,0.00025199,2]
[406296784,1771699843037,-207.0,0.00025206,120]
[406296785,1771699843046,-155.0,0.00025206,120]
[406296786,1771699843056,-150.0,0.000255,14]
[406296787,1771699843066,-486.92384,0.00025644,30]
[406296788,1771699843077,-167.45,0.0002585,7]
[406296790,1771699843086,-602.21629743,0.0002599,2]
[406296791,1771699843095,-216.96045593,0.00026,2]
[406296792,1771699843104,-150.0,0.00026197,30]
[406296793,1771699843113,-236.0,0.00026197,30]
[406296794,1771699843122,-216.53518297,0.000263,2]
[406296795,1771699843131,-613.72084174,0.00026315,2]
[406296796,1771699843141,-27539.4783723,0.000264,2]
[406296797,1771699843150,-151.0,0.000264,2]
[406296798,1771699843159,-151.0,0.000264,2]
[406296799,1771699843168,-151.0,0.000264,2]
[406296800,1771699843178,-151.0,0.000264,2]
[406296801,1771699843187,-151.0,0.000264,2]
[406296802,1771699843196,-151.0,0.000264,2]
[406296803,1771699843206,-151.0,0.000264,2]
[406296804,1771699843215,-151.0,0.000264,2]
[406296805,1771699843225,-151.0,0.000264,2]
[406296806,1771699843237,-151.0,0.000264,2]
[406296807,1771699843247,-151.0,0.000264,2]
[406296808,1771699843258,-151.0,0.000264,2]
[406296809,1771699843268,-151.0,0.000264,2]